{"text_format":"2","workbook":"xlsx","n_sheets":7,"sheets":["Kitöltési útmutató és info.","1.részajánlati kör","2.részajánlati kör","3.részajánlati kör","4.részajánlati kör","5.részajánlati kör","Termékkategóriák"],"not_rendered":{"charts":0,"images":0,"macros":0,"external_links":0,"defined_names":1,"comments":0,"pivot_tables":0},"unopened":[],"bounds":{"document_bytes":16777216,"sheet_cells":100000,"run_cost":"one","rows_first":2000,"rows_last":500,"rows_between":2000,"halvings":0,"cell_chars":16384,"cell_head_chars":4096},"cells_cut":0,"cells_raw":0,"read":"whole","date_system":"1900"}

{"sheet":"Kitöltési útmutató és info.","index":0,"n_rows":11,"n_cols":4,"rows_kept":11,"cut":false,"hidden":false,"merged":[[0,0,0,3],[1,0,8,0],[9,1,9,2],[10,1,10,2],[9,0,10,0]]}
["Kitöltési útmutató és további információ az Igénylők részére (részletes leírás a tájékoztató levélben található): "]
["Kitöltési útmutató","1.","Temékkategória kiválasztása","Valamennyi beszerezni kívánt terméket szükséges besrolni a kísérőlevél mellékleteként megküldött termékkategóriák valamelyikébe, a legördülő menü lehetőségekből kiválasztva. "]
[null,"2.","Termék neve","A beszerezni kívánt termék nevének megadása, szakmai elnevezése szükséges. Cikkszám, katalógusszám megadása nem elegendő!"]
[null,"3.","Termékjellemzők, lírás, minőség","A részletes termékleírás, elvárt termékjellemzők, ill. egyéb elvárások megadása szükséges. Gyártói cikkszám, katalógusszám megadása önmagában nem elegendő! Amennyiben a termék nem helyettesíthető más gyártóéval, úgy a részletes leírás mellett a gyártó megjelölést és az előzménykísérletre történő hivatkozást itt kell megadni."]
[null,"4.","Kiszerelés, csomagolás","A beszerezni kívánt kiszerelés megadása szükséges, a mennyiségi egységet és a mértékegységet külön cellában kérjük megadni!"]
[null,"5.","Igényelt mennyiség","Az E-F) oszlop szerinti kiszerelésből beszerezni kívánt mennyiséget kérjük megadni."]
[null,"6.","Vételi opció fenntartása","Amennyiben van olyan termék, amelynek beszerzési igénye csak feltételesen merül fel (pl. a kutatások előrehaladtával válik ismertté, hogy arra ténylegesen szükség lesz-e, vagy sem). Csak keretszerződés esetén értelmezhető."]
[null,"7.","Szállítási cím","Az a pontos cím (egyetemi egység, irányítószám, város, utca, házszám, épület/emelet/stb.) ahová a terméket kérik leszállítani. "]
[null,"8.","Elvárt szállítási határidő","A szerződés aláírásától számított időtartamban (nap vagy munkanap) megadva."]
["További információ","A részajánlati körök kialakításáról",null,"A részajánlati körök száma módosítható, jelen táblázatban tájékoztató jelleggel 5 részajánlati kör került feltüntetésre. A részajánlati körök sorszáma, illetve megnevezése a véglegesített ajántlattételi szakaszban, különösen összesített igények esetén eltérhet a jelen táblázatban megadottaktól. A részajánlati körök kialakításakor kérjük figyelembe venni azok ajánlattételre való megfelelőségét, a verseny biztosításának szem előtt tartásával."]
[null,"A közbeszerzés tárgya szerinti szakértelemmel rendelkező személy kiválasztásáról",null,"A közbeszerzés szakmai tárgya szerinti, a beszerzést kezdeményező egység vezetője vagy az általa felkért személy, kinek kiválasztásakor kérjük figyelembe venni, hogy a közbeszerzés tárgya szerinti szakértelemmel rendelkező személy aktív részvételére szükség van a közbeszerzési eljárás során: többek között jelen táblázattal, valamint az eljárás előkészítésekor felmerülő kérdésekben, a műszaki specifikáció meghatározásában, az eljárás iránt érdeklődő, potenciális ajánlattevők által esetlegesen érkező kiegészítő tájékoztatás-kérések megválaszolásában, a benyújtott ajánlatok szakmai értékelésében, a bírálatban, valamint az eljárás során keletkező egyéb esetekben, melyek szakmai, illetve az igénylő egység részéről véleményezést igényelnek, továbbá projekt esetében az eljárás ellenőrzésében felmerülő szakmai kérdések megválaszolásában."]

{"sheet":"1.részajánlati kör","index":1,"n_rows":63,"n_cols":25,"rows_kept":63,"cut":false,"hidden":false,"merged":[[8,10,8,24],[9,10,9,24],[1,2,1,4],[2,2,2,4],[3,2,3,4],[6,2,6,4],[9,0,9,9],[1,0,1,1],[3,0,3,1],[6,0,6,1],[8,0,8,9],[2,0,2,1],[10,0,12,0],[10,1,12,1],[10,2,12,2],[10,3,12,3],[4,0,4,1],[4,2,4,4],[5,2,5,4],[5,0,5,1],[10,4,10,5],[11,4,12,4],[11,5,12,5],[10,22,12,22],[10,23,12,23],[10,24,12,24],[10,6,12,6],[10,7,12,7],[10,8,12,8],[10,9,12,9],[11,19,12,19],[10,10,10,19],[10,20,10,21],[11,10,11,12],[11,13,11,15],[11,16,11,18],[11,21,12,21],[11,20,12,20]]}
[]
["Igénylő szervezeti egység:"]
["Közbeszerés tárgya szerinti szakértelemmel rendelkező személy\n(név, beosztás, elérhetőség):"]
["Fedezet forrása / Projektazonosító:"]
["Az 1. részajánlati kör megnevezése:"]
["Becsült érték összege\na T oszlop adatai alapján\naz 1. részajánlati kör tekintetében\n(nettó HUF):",null,{"$f":"SUM(T14:T63)","v":0}]
["Rendelkezésre álló fedezet összege\na W oszlop adatai alapján\naz 1. részajánlati kör tekintetében\n(nettó HUF):",null,{"$f":"SUM(W14:W63)","v":0}]
[]
["Igénylő által meghatározott műszaki leírás ",{"$nulls":9},"Előkészítés egyéb információi"]
["(valamennyi mező kitöltése szükséges, üres mezők esetén a beszerzés nem indítható meg)",{"$nulls":9},"(valamennyi mező kitöltése szükséges, üres mezők esetén a beszerzés nem indítható meg)"]
["Tételek/ részek száma ","Termékkategória kiválasztása1 (a DBR műszaki leírása alapján) ","Termék neve2","Termékjellemzők, leírás, minőség3","Kiszerelés, csomagolás4",null,"Igényelt mennyiség5      (az E-F) oszlop szerinti kiszerelésből)","Vételi jog opció fenntartása6 (Igen/Nem) (opció csak keretszerződés esetén értelmezhető)","Szállítási cím7","Elvárt szállítási határidő8 (nap/munkanap)","Becsült érték meghatározás",{"$nulls":9},"Nettó egységár meghatározásának módja",null,"Rendelkezésre álló fedezet összege (nettó HUF)","Egyediség indoklása\namennyiben releváns","Szakmai kapcsolattartó neve, elérhetőségei (email, telefonszám/mobil)\namennyiben eltér a C3 cellában megadottaktól"]
[{"$nulls":4},"Mennyisége (pl. 1, 5, 20, 25, 500 stb...)","Mérték-egysége (pl. kg, g, l, ml, db, ug  stb…)",{"$nulls":4},"Szakma által ismert gyártó, forgalmazó 1.",null,null,"Szakma által ismert gyártó, forgalmazó 2.",null,null,"Szakma által ismert gyártó, forgalmazó 3.",null,null,"Becsült érték\n3 db indikatív ajánlat alapján (nettó HUF)","korábbi megrendelések, szerződésel alapján / indikatív ajánlat alapján / \ntermékre mutató honlap link(ek) / szakértői becslés alapján","linkek megadása esetében a letöltés dátumának megjelölése"]
[{"$nulls":10},"Cég neve","Egységár (nettó HUF)","Érték összesen (nettó HUF)","Cég neve","Egységár (nettó HUF)","Érték összesen (nettó HUF)","Cég neve","Egységár (nettó HUF)","Érték összesen (nettó HUF)"]
[1,{"$nulls":10},0,{"$f":"G14*L14","v":0},null,0,{"$f":"G14*O14","v":0},null,0,{"$f":"G14*R14","v":0},{"$f":"AVERAGE(M14,P14,S14)","v":0},null,null,0]
[2,{"$nulls":10},0,{"$f":"G15*L15","v":0},null,0,{"$f":"G15*O15","v":0},null,0,{"$f":"G15*R15","v":0},{"$f":"AVERAGE(M15,P15,S15)","v":0},null,null,0]
[3,{"$nulls":10},0,0,null,0,0,null,0,0,{"$f":"AVERAGE(M16,P16,S16)","v":0},null,null,0]
[4,{"$nulls":10},0,0,null,0,0,null,0,0,0,null,null,0]
[5,{"$nulls":10},0,0,null,0,0,null,0,0,0,null,null,0]
[6,{"$nulls":10},0,0,null,0,0,null,0,0,0,null,null,0]
[7,{"$nulls":10},0,0,null,0,0,null,0,0,0,null,null,0]
[8,{"$nulls":10},0,0,null,0,0,null,0,0,0,null,null,0]
[9,{"$nulls":10},0,0,null,0,0,null,0,0,0,null,null,0]
[10,{"$nulls":10},0,0,null,0,0,null,0,0,0,null,null,0]
[11,{"$nulls":10},0,0,null,0,0,null,0,0,0,null,null,0]
[12,{"$nulls":10},0,0,null,0,{"$f":"G25*O25","v":0},null,0,0,0,null,null,0]
[13,{"$nulls":10},0,0,null,0,0,null,0,0,0,null,null,0]
[14,{"$nulls":10},0,0,null,0,0,null,0,0,0,null,null,0]
[15,{"$nulls":10},0,0,null,0,0,null,0,0,0,null,null,0]
[16,{"$nulls":10},0,0,null,0,0,null,0,0,0,null,null,0]
[17,{"$nulls":10},0,0,null,0,0,null,0,0,0,null,null,0]
[18,{"$nulls":10},0,0,null,0,0,null,0,0,0,null,null,0]
[19,{"$nulls":10},0,0,null,0,0,null,0,0,0,null,null,0]
[20,{"$nulls":10},0,0,null,0,0,null,0,0,0,null,null,0]
[21,{"$nulls":10},0,0,null,0,0,null,0,0,0,null,null,0]
[22,{"$nulls":10},0,0,null,0,0,null,0,0,0,null,null,0]
[23,{"$nulls":10},0,0,null,0,0,null,0,0,0,null,null,0]
[24,{"$nulls":10},0,0,null,0,0,null,0,0,0,null,null,0]
[25,{"$nulls":10},0,0,null,0,0,null,0,0,0,null,null,0]
[26,{"$nulls":10},0,0,null,0,0,null,0,0,0,null,null,0]
[27,{"$nulls":10},0,0,null,0,0,null,0,0,0,null,null,0]
[28,{"$nulls":10},0,0,null,0,0,null,0,0,0,null,null,0]
[29,{"$nulls":10},0,0,null,0,0,null,0,0,0,null,null,0]
[30,{"$nulls":10},0,0,null,0,0,null,0,0,0,null,null,0]
[31,{"$nulls":10},0,0,null,0,0,null,0,0,0,null,null,0]
[32,{"$nulls":10},0,0,null,0,0,null,0,0,0,null,null,0]
[33,{"$nulls":10},0,0,null,0,0,null,0,0,0,null,null,0]
[34,{"$nulls":10},0,0,null,0,0,null,0,0,0,null,null,0]
[35,{"$nulls":10},0,0,null,0,0,null,0,0,0,null,null,0]
[36,{"$nulls":10},0,0,null,0,0,null,0,0,0,null,null,0]
[37,{"$nulls":10},0,0,null,0,0,null,0,0,0,null,null,0]
[38,{"$nulls":10},0,0,null,0,0,null,0,0,0,null,null,0]
[39,{"$nulls":10},0,0,null,0,0,null,0,0,0,null,null,0]
[40,{"$nulls":10},0,0,null,0,0,null,0,0,0,null,null,0]
[41,{"$nulls":10},0,0,null,0,0,null,0,0,0,null,null,0]
[42,{"$nulls":10},0,0,null,0,0,null,0,0,0,null,null,0]
[43,{"$nulls":10},0,0,null,0,0,null,0,0,0,null,null,0]
[44,{"$nulls":10},0,0,null,0,0,null,0,0,0,null,null,0]
[45,{"$nulls":10},0,0,null,0,0,null,0,0,0,null,null,0]
[46,{"$nulls":10},0,0,null,0,0,null,0,0,0,null,null,0]
[47,{"$nulls":10},0,0,null,0,0,null,0,0,0,null,null,0]
[48,{"$nulls":10},0,0,null,0,0,null,0,0,0,null,null,0]
[49,{"$nulls":10},0,0,null,0,0,null,0,0,0,null,null,0]
[50,{"$nulls":10},0,0,null,0,0,null,0,0,0,null,null,0]

{"sheet":"2.részajánlati kör","index":2,"n_rows":63,"n_cols":25,"rows_kept":63,"cut":false,"hidden":false,"merged":[[10,22,12,22],[11,16,11,18],[11,19,12,19],[11,20,12,20],[11,21,12,21],[10,7,12,7],[10,8,12,8],[10,9,12,9],[10,10,10,19],[10,20,10,21],[8,0,8,9],[8,10,8,24],[9,0,9,9],[9,10,9,24],[10,0,12,0],[10,1,12,1],[10,2,12,2],[10,3,12,3],[10,4,10,5],[10,6,12,6],[10,23,12,23],[10,24,12,24],[11,4,12,4],[11,5,12,5],[11,10,11,12],[11,13,11,15],[4,0,4,1],[4,2,4,4],[5,0,5,1],[5,2,5,4],[6,0,6,1],[6,2,6,4],[1,0,1,1],[1,2,1,4],[2,0,2,1],[2,2,2,4],[3,0,3,1],[3,2,3,4]]}
[]
["Igénylő szervezeti egység:"]
["Közbeszerés tárgya szerinti szakértelemmel rendelkező személy\n(név, beosztás, elérhetőség):"]
["Fedezet forrása / Projektazonosító:"]
["Az 1. részajánlati kör megnevezése:"]
["Becsült érték összege\na T oszlop adatai alapján\na 2. részajánlati kör tekintetében\n(nettó HUF):",null,{"$f":"SUM(T14:T63)","v":0}]
["Rendelkezésre álló fedezet összege\na W oszlop adatai alapján\na 2. részajánlati kör tekintetében\n(nettó HUF):",null,{"$f":"SUM(W14:W63)","v":0}]
[]
["Igénylő által meghatározott műszaki leírás ",{"$nulls":9},"Előkészítés egyéb információi"]
["(valamennyi mező kitöltése szükséges, üres mezők esetén a beszerzés nem indítható meg)",{"$nulls":9},"(valamennyi mező kitöltése szükséges, üres mezők esetén a beszerzés nem indítható meg)"]
["Tételek/ részek száma ","Termékkategória kiválasztása1 (a DBR műszaki leírása alapján) ","Termék neve2","Termékjellemzők, leírás, minőség3","Kiszerelés, csomagolás4",null,"Igényelt mennyiség5      (az E-F) oszlop szerinti kiszerelésből)","Vételi jog opció fenntartása6 (Igen/Nem) (opció csak keretszerződés esetén értelmezhető)","Szállítási cím7","Elvárt szállítási határidő8 (nap/munkanap)","Becsült érték meghatározás",{"$nulls":9},"Nettó egységár meghatározásának módja",null,"Rendelkezésre álló fedezet összege (nettó HUF)","Egyediség indoklása\namennyiben releváns","Szakmai kapcsolattartó neve, elérhetőségei (email, telefonszám/mobil)\namennyiben eltér a C3 cellában megadottaktól"]
[{"$nulls":4},"Mennyisége (pl. 1, 5, 20, 25, 500 stb...)","Mérték-egysége (pl. kg, g, l, ml, db, ug  stb…)",{"$nulls":4},"Szakma által ismert gyártó, forgalmazó 1.",null,null,"Szakma által ismert gyártó, forgalmazó 2.",null,null,"Szakma által ismert gyártó, forgalmazó 3.",null,null,"Becsült érték\n3 db indikatív ajánlat alapján (nettó HUF)","korábbi megrendelések, szerződésel alapján / indikatív ajánlat alapján / \ntermékre mutató honlap link(ek) / szakértői becslés alapján","linkek megadása esetében a letöltés dátumának megjelölése"]
[{"$nulls":10},"Cég neve","Egységár (nettó HUF)","Érték összesen (nettó HUF)","Cég neve","Egységár (nettó HUF)","Érték összesen (nettó HUF)","Cég neve","Egységár (nettó HUF)","Érték összesen (nettó HUF)"]
[1,{"$nulls":10},0,{"$f":"G14*L14","v":0},null,0,{"$f":"G14*O14","v":0},null,0,{"$f":"G14*R14","v":0},{"$f":"AVERAGE(M14,P14,S14)","v":0},null,null,0]
[2,{"$nulls":10},0,{"$f":"G15*L15","v":0},null,0,{"$f":"G15*O15","v":0},null,0,{"$f":"G15*R15","v":0},{"$f":"AVERAGE(M15,P15,S15)","v":0},null,null,0]
[3,{"$nulls":10},0,0,null,0,0,null,0,0,{"$f":"AVERAGE(M16,P16,S16)","v":0},null,null,0]
[4,{"$nulls":10},0,0,null,0,0,null,0,0,0,null,null,0]
[5,{"$nulls":10},0,0,null,0,0,null,0,0,0,null,null,0]
[6,{"$nulls":10},0,0,null,0,0,null,0,0,0,null,null,0]
[7,{"$nulls":10},0,0,null,0,0,null,0,0,0,null,null,0]
[8,{"$nulls":10},0,0,null,0,0,null,0,0,0,null,null,0]
[9,{"$nulls":10},0,0,null,0,0,null,0,0,0,null,null,0]
[10,{"$nulls":10},0,0,null,0,0,null,0,0,0,null,null,0]
[11,{"$nulls":10},0,0,null,0,0,null,0,0,0,null,null,0]
[12,{"$nulls":10},0,0,null,0,{"$f":"G25*O25","v":0},null,0,0,0,null,null,0]
[13,{"$nulls":10},0,0,null,0,0,null,0,0,0,null,null,0]
[14,{"$nulls":10},0,0,null,0,0,null,0,0,0,null,null,0]
[15,{"$nulls":10},0,0,null,0,0,null,0,0,0,null,null,0]
[16,{"$nulls":10},0,0,null,0,0,null,0,0,0,null,null,0]
[17,{"$nulls":10},0,0,null,0,0,null,0,0,0,null,null,0]
[18,{"$nulls":10},0,0,null,0,0,null,0,0,0,null,null,0]
[19,{"$nulls":10},0,0,null,0,0,null,0,0,0,null,null,0]
[20,{"$nulls":10},0,0,null,0,0,null,0,0,0,null,null,0]
[21,{"$nulls":10},0,0,null,0,0,null,0,0,0,null,null,0]
[22,{"$nulls":10},0,0,null,0,0,null,0,0,0,null,null,0]
[23,{"$nulls":10},0,0,null,0,0,null,0,0,0,null,null,0]
[24,{"$nulls":10},0,0,null,0,0,null,0,0,0,null,null,0]
[25,{"$nulls":10},0,0,null,0,0,null,0,0,0,null,null,0]
[26,{"$nulls":10},0,0,null,0,0,null,0,0,0,null,null,0]
[27,{"$nulls":10},0,0,null,0,0,null,0,0,0,null,null,0]
[28,{"$nulls":10},0,0,null,0,0,null,0,0,0,null,null,0]
[29,{"$nulls":10},0,0,null,0,0,null,0,0,0,null,null,0]
[30,{"$nulls":10},0,0,null,0,0,null,0,0,0,null,null,0]
[31,{"$nulls":10},0,0,null,0,0,null,0,0,0,null,null,0]
[32,{"$nulls":10},0,0,null,0,0,null,0,0,0,null,null,0]
[33,{"$nulls":10},0,0,null,0,0,null,0,0,0,null,null,0]
[34,{"$nulls":10},0,0,null,0,0,null,0,0,0,null,null,0]
[35,{"$nulls":10},0,0,null,0,0,null,0,0,0,null,null,0]
[36,{"$nulls":10},0,0,null,0,0,null,0,0,0,null,null,0]
[37,{"$nulls":10},0,0,null,0,0,null,0,0,0,null,null,0]
[38,{"$nulls":10},0,0,null,0,0,null,0,0,0,null,null,0]
[39,{"$nulls":10},0,0,null,0,0,null,0,0,0,null,null,0]
[40,{"$nulls":10},0,0,null,0,0,null,0,0,0,null,null,0]
[41,{"$nulls":10},0,0,null,0,0,null,0,0,0,null,null,0]
[42,{"$nulls":10},0,0,null,0,0,null,0,0,0,null,null,0]
[43,{"$nulls":10},0,0,null,0,0,null,0,0,0,null,null,0]
[44,{"$nulls":10},0,0,null,0,0,null,0,0,0,null,null,0]
[45,{"$nulls":10},0,0,null,0,0,null,0,0,0,null,null,0]
[46,{"$nulls":10},0,0,null,0,0,null,0,0,0,null,null,0]
[47,{"$nulls":10},0,0,null,0,0,null,0,0,0,null,null,0]
[48,{"$nulls":10},0,0,null,0,0,null,0,0,0,null,null,0]
[49,{"$nulls":10},0,0,null,0,0,null,0,0,0,null,null,0]
[50,{"$nulls":10},0,0,null,0,0,null,0,0,0,null,null,0]

{"sheet":"3.részajánlati kör","index":3,"n_rows":63,"n_cols":25,"rows_kept":63,"cut":false,"hidden":false,"merged":[[10,22,12,22],[11,16,11,18],[11,19,12,19],[11,20,12,20],[11,21,12,21],[10,7,12,7],[10,8,12,8],[10,9,12,9],[10,10,10,19],[10,20,10,21],[8,0,8,9],[8,10,8,24],[9,0,9,9],[9,10,9,24],[10,0,12,0],[10,1,12,1],[10,2,12,2],[10,3,12,3],[10,4,10,5],[10,6,12,6],[10,23,12,23],[10,24,12,24],[11,4,12,4],[11,5,12,5],[11,10,11,12],[11,13,11,15],[4,0,4,1],[4,2,4,4],[5,0,5,1],[5,2,5,4],[6,0,6,1],[6,2,6,4],[1,0,1,1],[1,2,1,4],[2,0,2,1],[2,2,2,4],[3,0,3,1],[3,2,3,4]]}
[]
["Igénylő szervezeti egység:"]
["Közbeszerés tárgya szerinti szakértelemmel rendelkező személy\n(név, beosztás, elérhetőség):"]
["Fedezet forrása / Projektazonosító:"]
["Az 1. részajánlati kör megnevezése:"]
["Becsült érték összege\na T oszlop adatai alapján\na 3. részajánlati kör tekintetében\n(nettó HUF):",null,{"$f":"SUM(T14:T63)","v":0}]
["Rendelkezésre álló fedezet összege\na W oszlop adatai alapján\na 3. részajánlati kör tekintetében\n(nettó HUF):",null,{"$f":"SUM(W14:W63)","v":0}]
[]
["Igénylő által meghatározott műszaki leírás ",{"$nulls":9},"Előkészítés egyéb információi"]
["(valamennyi mező kitöltése szükséges, üres mezők esetén a beszerzés nem indítható meg)",{"$nulls":9},"(valamennyi mező kitöltése szükséges, üres mezők esetén a beszerzés nem indítható meg)"]
["Tételek/ részek száma ","Termékkategória kiválasztása1 (a DBR műszaki leírása alapján) ","Termék neve2","Termékjellemzők, leírás, minőség3","Kiszerelés, csomagolás4",null,"Igényelt mennyiség5      (az E-F) oszlop szerinti kiszerelésből)","Vételi jog opció fenntartása6 (Igen/Nem) (opció csak keretszerződés esetén értelmezhető)","Szállítási cím7","Elvárt szállítási határidő8 (nap/munkanap)","Becsült érték meghatározás",{"$nulls":9},"Nettó egységár meghatározásának módja",null,"Rendelkezésre álló fedezet összege (nettó HUF)","Egyediség indoklása\namennyiben releváns","Szakmai kapcsolattartó neve, elérhetőségei (email, telefonszám/mobil)\namennyiben eltér a C3 cellában megadottaktól"]
[{"$nulls":4},"Mennyisége (pl. 1, 5, 20, 25, 500 stb...)","Mérték-egysége (pl. kg, g, l, ml, db, ug  stb…)",{"$nulls":4},"Szakma által ismert gyártó, forgalmazó 1.",null,null,"Szakma által ismert gyártó, forgalmazó 2.",null,null,"Szakma által ismert gyártó, forgalmazó 3.",null,null,"Becsült érték\n3 db indikatív ajánlat alapján (nettó HUF)","korábbi megrendelések, szerződésel alapján / indikatív ajánlat alapján / \ntermékre mutató honlap link(ek) / szakértői becslés alapján","linkek megadása esetében a letöltés dátumának megjelölése"]
[{"$nulls":10},"Cég neve","Egységár (nettó HUF)","Érték összesen (nettó HUF)","Cég neve","Egységár (nettó HUF)","Érték összesen (nettó HUF)","Cég neve","Egységár (nettó HUF)","Érték összesen (nettó HUF)"]
[1,{"$nulls":10},0,{"$f":"G14*L14","v":0},null,0,{"$f":"G14*O14","v":0},null,0,{"$f":"G14*R14","v":0},{"$f":"AVERAGE(M14,P14,S14)","v":0},null,null,0]
[2,{"$nulls":10},0,{"$f":"G15*L15","v":0},null,0,{"$f":"G15*O15","v":0},null,0,{"$f":"G15*R15","v":0},{"$f":"AVERAGE(M15,P15,S15)","v":0},null,null,0]
[3,{"$nulls":10},0,0,null,0,0,null,0,0,{"$f":"AVERAGE(M16,P16,S16)","v":0},null,null,0]
[4,{"$nulls":10},0,0,null,0,0,null,0,0,0,null,null,0]
[5,{"$nulls":10},0,0,null,0,0,null,0,0,0,null,null,0]
[6,{"$nulls":10},0,0,null,0,0,null,0,0,0,null,null,0]
[7,{"$nulls":10},0,0,null,0,0,null,0,0,0,null,null,0]
[8,{"$nulls":10},0,0,null,0,0,null,0,0,0,null,null,0]
[9,{"$nulls":10},0,0,null,0,0,null,0,0,0,null,null,0]
[10,{"$nulls":10},0,0,null,0,0,null,0,0,0,null,null,0]
[11,{"$nulls":10},0,0,null,0,0,null,0,0,0,null,null,0]
[12,{"$nulls":10},0,0,null,0,{"$f":"G25*O25","v":0},null,0,0,0,null,null,0]
[13,{"$nulls":10},0,0,null,0,0,null,0,0,0,null,null,0]
[14,{"$nulls":10},0,0,null,0,0,null,0,0,0,null,null,0]
[15,{"$nulls":10},0,0,null,0,0,null,0,0,0,null,null,0]
[16,{"$nulls":10},0,0,null,0,0,null,0,0,0,null,null,0]
[17,{"$nulls":10},0,0,null,0,0,null,0,0,0,null,null,0]
[18,{"$nulls":10},0,0,null,0,0,null,0,0,0,null,null,0]
[19,{"$nulls":10},0,0,null,0,0,null,0,0,0,null,null,0]
[20,{"$nulls":10},0,0,null,0,0,null,0,0,0,null,null,0]
[21,{"$nulls":10},0,0,null,0,0,null,0,0,0,null,null,0]
[22,{"$nulls":10},0,0,null,0,0,null,0,0,0,null,null,0]
[23,{"$nulls":10},0,0,null,0,0,null,0,0,0,null,null,0]
[24,{"$nulls":10},0,0,null,0,0,null,0,0,0,null,null,0]
[25,{"$nulls":10},0,0,null,0,0,null,0,0,0,null,null,0]
[26,{"$nulls":10},0,0,null,0,0,null,0,0,0,null,null,0]
[27,{"$nulls":10},0,0,null,0,0,null,0,0,0,null,null,0]
[28,{"$nulls":10},0,0,null,0,0,null,0,0,0,null,null,0]
[29,{"$nulls":10},0,0,null,0,0,null,0,0,0,null,null,0]
[30,{"$nulls":10},0,0,null,0,0,null,0,0,0,null,null,0]
[31,{"$nulls":10},0,0,null,0,0,null,0,0,0,null,null,0]
[32,{"$nulls":10},0,0,null,0,0,null,0,0,0,null,null,0]
[33,{"$nulls":10},0,0,null,0,0,null,0,0,0,null,null,0]
[34,{"$nulls":10},0,0,null,0,0,null,0,0,0,null,null,0]
[35,{"$nulls":10},0,0,null,0,0,null,0,0,0,null,null,0]
[36,{"$nulls":10},0,0,null,0,0,null,0,0,0,null,null,0]
[37,{"$nulls":10},0,0,null,0,0,null,0,0,0,null,null,0]
[38,{"$nulls":10},0,0,null,0,0,null,0,0,0,null,null,0]
[39,{"$nulls":10},0,0,null,0,0,null,0,0,0,null,null,0]
[40,{"$nulls":10},0,0,null,0,0,null,0,0,0,null,null,0]
[41,{"$nulls":10},0,0,null,0,0,null,0,0,0,null,null,0]
[42,{"$nulls":10},0,0,null,0,0,null,0,0,0,null,null,0]
[43,{"$nulls":10},0,0,null,0,0,null,0,0,0,null,null,0]
[44,{"$nulls":10},0,0,null,0,0,null,0,0,0,null,null,0]
[45,{"$nulls":10},0,0,null,0,0,null,0,0,0,null,null,0]
[46,{"$nulls":10},0,0,null,0,0,null,0,0,0,null,null,0]
[47,{"$nulls":10},0,0,null,0,0,null,0,0,0,null,null,0]
[48,{"$nulls":10},0,0,null,0,0,null,0,0,0,null,null,0]
[49,{"$nulls":10},0,0,null,0,0,null,0,0,0,null,null,0]
[50,{"$nulls":10},0,0,null,0,0,null,0,0,0,null,null,0]

{"sheet":"4.részajánlati kör","index":4,"n_rows":63,"n_cols":25,"rows_kept":63,"cut":false,"hidden":false,"merged":[[10,22,12,22],[11,16,11,18],[11,19,12,19],[11,20,12,20],[11,21,12,21],[10,7,12,7],[10,8,12,8],[10,9,12,9],[10,10,10,19],[10,20,10,21],[8,0,8,9],[8,10,8,24],[9,0,9,9],[9,10,9,24],[10,0,12,0],[10,1,12,1],[10,2,12,2],[10,3,12,3],[10,4,10,5],[10,6,12,6],[10,23,12,23],[10,24,12,24],[11,4,12,4],[11,5,12,5],[11,10,11,12],[11,13,11,15],[4,0,4,1],[4,2,4,4],[5,0,5,1],[5,2,5,4],[6,0,6,1],[6,2,6,4],[1,0,1,1],[1,2,1,4],[2,0,2,1],[2,2,2,4],[3,0,3,1],[3,2,3,4]]}
[]
["Igénylő szervezeti egység:"]
["Közbeszerés tárgya szerinti szakértelemmel rendelkező személy\n(név, beosztás, elérhetőség):"]
["Fedezet forrása / Projektazonosító:"]
["Az 1. részajánlati kör megnevezése:"]
["Becsült érték összege\na T oszlop adatai alapján\na 4. részajánlati kör tekintetében\n(nettó HUF):",null,{"$f":"SUM(T14:T63)","v":0}]
["Rendelkezésre álló fedezet összege\na W oszlop adatai alapján\na 4. részajánlati kör tekintetében\n(nettó HUF):",null,{"$f":"SUM(W14:W63)","v":0}]
[]
["Igénylő által meghatározott műszaki leírás ",{"$nulls":9},"Előkészítés egyéb információi"]
["(valamennyi mező kitöltése szükséges, üres mezők esetén a beszerzés nem indítható meg)",{"$nulls":9},"(valamennyi mező kitöltése szükséges, üres mezők esetén a beszerzés nem indítható meg)"]
["Tételek/ részek száma ","Termékkategória kiválasztása1 (a DBR műszaki leírása alapján) ","Termék neve2","Termékjellemzők, leírás, minőség3","Kiszerelés, csomagolás4",null,"Igényelt mennyiség5      (az E-F) oszlop szerinti kiszerelésből)","Vételi jog opció fenntartása6 (Igen/Nem) (opció csak keretszerződés esetén értelmezhető)","Szállítási cím7","Elvárt szállítási határidő8 (nap/munkanap)","Becsült érték meghatározás",{"$nulls":9},"Nettó egységár meghatározásának módja",null,"Rendelkezésre álló fedezet összege (nettó HUF)","Egyediség indoklása\namennyiben releváns","Szakmai kapcsolattartó neve, elérhetőségei (email, telefonszám/mobil)\namennyiben eltér a C3 cellában megadottaktól"]
[{"$nulls":4},"Mennyisége (pl. 1, 5, 20, 25, 500 stb...)","Mérték-egysége (pl. kg, g, l, ml, db, ug  stb…)",{"$nulls":4},"Szakma által ismert gyártó, forgalmazó 1.",null,null,"Szakma által ismert gyártó, forgalmazó 2.",null,null,"Szakma által ismert gyártó, forgalmazó 3.",null,null,"Becsült érték\n3 db indikatív ajánlat alapján (nettó HUF)","korábbi megrendelések, szerződésel alapján / indikatív ajánlat alapján / \ntermékre mutató honlap link(ek) / szakértői becslés alapján","linkek megadása esetében a letöltés dátumának megjelölése"]
[{"$nulls":10},"Cég neve","Egységár (nettó HUF)","Érték összesen (nettó HUF)","Cég neve","Egységár (nettó HUF)","Érték összesen (nettó HUF)","Cég neve","Egységár (nettó HUF)","Érték összesen (nettó HUF)"]
[1,{"$nulls":10},0,{"$f":"G14*L14","v":0},null,0,{"$f":"G14*O14","v":0},null,0,{"$f":"G14*R14","v":0},{"$f":"AVERAGE(M14,P14,S14)","v":0},null,null,0]
[2,{"$nulls":10},0,{"$f":"G15*L15","v":0},null,0,{"$f":"G15*O15","v":0},null,0,{"$f":"G15*R15","v":0},{"$f":"AVERAGE(M15,P15,S15)","v":0},null,null,0]
[3,{"$nulls":10},0,0,null,0,0,null,0,0,{"$f":"AVERAGE(M16,P16,S16)","v":0},null,null,0]
[4,{"$nulls":10},0,0,null,0,0,null,0,0,0,null,null,0]
[5,{"$nulls":10},0,0,null,0,0,null,0,0,0,null,null,0]
[6,{"$nulls":10},0,0,null,0,0,null,0,0,0,null,null,0]
[7,{"$nulls":10},0,0,null,0,0,null,0,0,0,null,null,0]
[8,{"$nulls":10},0,0,null,0,0,null,0,0,0,null,null,0]
[9,{"$nulls":10},0,0,null,0,0,null,0,0,0,null,null,0]
[10,{"$nulls":10},0,0,null,0,0,null,0,0,0,null,null,0]
[11,{"$nulls":10},0,0,null,0,0,null,0,0,0,null,null,0]
[12,{"$nulls":10},0,0,null,0,{"$f":"G25*O25","v":0},null,0,0,0,null,null,0]
[13,{"$nulls":10},0,0,null,0,0,null,0,0,0,null,null,0]
[14,{"$nulls":10},0,0,null,0,0,null,0,0,0,null,null,0]
[15,{"$nulls":10},0,0,null,0,0,null,0,0,0,null,null,0]
[16,{"$nulls":10},0,0,null,0,0,null,0,0,0,null,null,0]
[17,{"$nulls":10},0,0,null,0,0,null,0,0,0,null,null,0]
[18,{"$nulls":10},0,0,null,0,0,null,0,0,0,null,null,0]
[19,{"$nulls":10},0,0,null,0,0,null,0,0,0,null,null,0]
[20,{"$nulls":10},0,0,null,0,0,null,0,0,0,null,null,0]
[21,{"$nulls":10},0,0,null,0,0,null,0,0,0,null,null,0]
[22,{"$nulls":10},0,0,null,0,0,null,0,0,0,null,null,0]
[23,{"$nulls":10},0,0,null,0,0,null,0,0,0,null,null,0]
[24,{"$nulls":10},0,0,null,0,0,null,0,0,0,null,null,0]
[25,{"$nulls":10},0,0,null,0,0,null,0,0,0,null,null,0]
[26,{"$nulls":10},0,0,null,0,0,null,0,0,0,null,null,0]
[27,{"$nulls":10},0,0,null,0,0,null,0,0,0,null,null,0]
[28,{"$nulls":10},0,0,null,0,0,null,0,0,0,null,null,0]
[29,{"$nulls":10},0,0,null,0,0,null,0,0,0,null,null,0]
[30,{"$nulls":10},0,0,null,0,0,null,0,0,0,null,null,0]
[31,{"$nulls":10},0,0,null,0,0,null,0,0,0,null,null,0]
[32,{"$nulls":10},0,0,null,0,0,null,0,0,0,null,null,0]
[33,{"$nulls":10},0,0,null,0,0,null,0,0,0,null,null,0]
[34,{"$nulls":10},0,0,null,0,0,null,0,0,0,null,null,0]
[35,{"$nulls":10},0,0,null,0,0,null,0,0,0,null,null,0]
[36,{"$nulls":10},0,0,null,0,0,null,0,0,0,null,null,0]
[37,{"$nulls":10},0,0,null,0,0,null,0,0,0,null,null,0]
[38,{"$nulls":10},0,0,null,0,0,null,0,0,0,null,null,0]
[39,{"$nulls":10},0,0,null,0,0,null,0,0,0,null,null,0]
[40,{"$nulls":10},0,0,null,0,0,null,0,0,0,null,null,0]
[41,{"$nulls":10},0,0,null,0,0,null,0,0,0,null,null,0]
[42,{"$nulls":10},0,0,null,0,0,null,0,0,0,null,null,0]
[43,{"$nulls":10},0,0,null,0,0,null,0,0,0,null,null,0]
[44,{"$nulls":10},0,0,null,0,0,null,0,0,0,null,null,0]
[45,{"$nulls":10},0,0,null,0,0,null,0,0,0,null,null,0]
[46,{"$nulls":10},0,0,null,0,0,null,0,0,0,null,null,0]
[47,{"$nulls":10},0,0,null,0,0,null,0,0,0,null,null,0]
[48,{"$nulls":10},0,0,null,0,0,null,0,0,0,null,null,0]
[49,{"$nulls":10},0,0,null,0,0,null,0,0,0,null,null,0]
[50,{"$nulls":10},0,0,null,0,0,null,0,0,0,null,null,0]

{"sheet":"5.részajánlati kör","index":5,"n_rows":63,"n_cols":25,"rows_kept":63,"cut":false,"hidden":false,"merged":[[10,22,12,22],[11,16,11,18],[11,19,12,19],[11,20,12,20],[11,21,12,21],[10,7,12,7],[10,8,12,8],[10,9,12,9],[10,10,10,19],[10,20,10,21],[8,0,8,9],[8,10,8,24],[9,0,9,9],[9,10,9,24],[10,0,12,0],[10,1,12,1],[10,2,12,2],[10,3,12,3],[10,4,10,5],[10,6,12,6],[10,23,12,23],[10,24,12,24],[11,4,12,4],[11,5,12,5],[11,10,11,12],[11,13,11,15],[4,0,4,1],[4,2,4,4],[5,0,5,1],[5,2,5,4],[6,0,6,1],[6,2,6,4],[1,0,1,1],[1,2,1,4],[2,0,2,1],[2,2,2,4],[3,0,3,1],[3,2,3,4]]}
[]
["Igénylő szervezeti egység:"]
["Közbeszerés tárgya szerinti szakértelemmel rendelkező személy\n(név, beosztás, elérhetőség):"]
["Fedezet forrása / Projektazonosító:"]
["Az 1. részajánlati kör megnevezése:"]
["Becsült érték összege\na T oszlop adatai alapján\naz 5. részajánlati kör tekintetében\n(nettó HUF):",null,{"$f":"SUM(T14:T63)","v":0}]
["Rendelkezésre álló fedezet összege\na W oszlop adatai alapján\naz 5. részajánlati kör tekintetében\n(nettó HUF):",null,{"$f":"SUM(W14:W63)","v":0}]
[]
["Igénylő által meghatározott műszaki leírás ",{"$nulls":9},"Előkészítés egyéb információi"]
["(valamennyi mező kitöltése szükséges, üres mezők esetén a beszerzés nem indítható meg)",{"$nulls":9},"(valamennyi mező kitöltése szükséges, üres mezők esetén a beszerzés nem indítható meg)"]
["Tételek/ részek száma ","Termékkategória kiválasztása1 (a DBR műszaki leírása alapján) ","Termék neve2","Termékjellemzők, leírás, minőség3","Kiszerelés, csomagolás4",null,"Igényelt mennyiség5      (az E-F) oszlop szerinti kiszerelésből)","Vételi jog opció fenntartása6 (Igen/Nem) (opció csak keretszerződés esetén értelmezhető)","Szállítási cím7","Elvárt szállítási határidő8 (nap/munkanap)","Becsült érték meghatározás",{"$nulls":9},"Nettó egységár meghatározásának módja",null,"Rendelkezésre álló fedezet összege (nettó HUF)","Egyediség indoklása\namennyiben releváns","Szakmai kapcsolattartó neve, elérhetőségei (email, telefonszám/mobil)\namennyiben eltér a C3 cellában megadottaktól"]
[{"$nulls":4},"Mennyisége (pl. 1, 5, 20, 25, 500 stb...)","Mérték-egysége (pl. kg, g, l, ml, db, ug  stb…)",{"$nulls":4},"Szakma által ismert gyártó, forgalmazó 1.",null,null,"Szakma által ismert gyártó, forgalmazó 2.",null,null,"Szakma által ismert gyártó, forgalmazó 3.",null,null,"Becsült érték\n3 db indikatív ajánlat alapján (nettó HUF)","korábbi megrendelések, szerződésel alapján / indikatív ajánlat alapján / \ntermékre mutató honlap link(ek) / szakértői becslés alapján","linkek megadása esetében a letöltés dátumának megjelölése"]
[{"$nulls":10},"Cég neve","Egységár (nettó HUF)","Érték összesen (nettó HUF)","Cég neve","Egységár (nettó HUF)","Érték összesen (nettó HUF)","Cég neve","Egységár (nettó HUF)","Érték összesen (nettó HUF)"]
[1,{"$nulls":10},0,{"$f":"G14*L14","v":0},null,0,{"$f":"G14*O14","v":0},null,0,{"$f":"G14*R14","v":0},{"$f":"AVERAGE(M14,P14,S14)","v":0},null,null,0]
[2,{"$nulls":10},0,{"$f":"G15*L15","v":0},null,0,{"$f":"G15*O15","v":0},null,0,{"$f":"G15*R15","v":0},{"$f":"AVERAGE(M15,P15,S15)","v":0},null,null,0]
[3,{"$nulls":10},0,0,null,0,0,null,0,0,{"$f":"AVERAGE(M16,P16,S16)","v":0},null,null,0]
[4,{"$nulls":10},0,0,null,0,0,null,0,0,0,null,null,0]
[5,{"$nulls":10},0,0,null,0,0,null,0,0,0,null,null,0]
[6,{"$nulls":10},0,0,null,0,0,null,0,0,0,null,null,0]
[7,{"$nulls":10},0,0,null,0,0,null,0,0,0,null,null,0]
[8,{"$nulls":10},0,0,null,0,0,null,0,0,0,null,null,0]
[9,{"$nulls":10},0,0,null,0,0,null,0,0,0,null,null,0]
[10,{"$nulls":10},0,0,null,0,0,null,0,0,0,null,null,0]
[11,{"$nulls":10},0,0,null,0,0,null,0,0,0,null,null,0]
[12,{"$nulls":10},0,0,null,0,{"$f":"G25*O25","v":0},null,0,0,0,null,null,0]
[13,{"$nulls":10},0,0,null,0,0,null,0,0,0,null,null,0]
[14,{"$nulls":10},0,0,null,0,0,null,0,0,0,null,null,0]
[15,{"$nulls":10},0,0,null,0,0,null,0,0,0,null,null,0]
[16,{"$nulls":10},0,0,null,0,0,null,0,0,0,null,null,0]
[17,{"$nulls":10},0,0,null,0,0,null,0,0,0,null,null,0]
[18,{"$nulls":10},0,0,null,0,0,null,0,0,0,null,null,0]
[19,{"$nulls":10},0,0,null,0,0,null,0,0,0,null,null,0]
[20,{"$nulls":10},0,0,null,0,0,null,0,0,0,null,null,0]
[21,{"$nulls":10},0,0,null,0,0,null,0,0,0,null,null,0]
[22,{"$nulls":10},0,0,null,0,0,null,0,0,0,null,null,0]
[23,{"$nulls":10},0,0,null,0,0,null,0,0,0,null,null,0]
[24,{"$nulls":10},0,0,null,0,0,null,0,0,0,null,null,0]
[25,{"$nulls":10},0,0,null,0,0,null,0,0,0,null,null,0]
[26,{"$nulls":10},0,0,null,0,0,null,0,0,0,null,null,0]
[27,{"$nulls":10},0,0,null,0,0,null,0,0,0,null,null,0]
[28,{"$nulls":10},0,0,null,0,0,null,0,0,0,null,null,0]
[29,{"$nulls":10},0,0,null,0,0,null,0,0,0,null,null,0]
[30,{"$nulls":10},0,0,null,0,0,null,0,0,0,null,null,0]
[31,{"$nulls":10},0,0,null,0,0,null,0,0,0,null,null,0]
[32,{"$nulls":10},0,0,null,0,0,null,0,0,0,null,null,0]
[33,{"$nulls":10},0,0,null,0,0,null,0,0,0,null,null,0]
[34,{"$nulls":10},0,0,null,0,0,null,0,0,0,null,null,0]
[35,{"$nulls":10},0,0,null,0,0,null,0,0,0,null,null,0]
[36,{"$nulls":10},0,0,null,0,0,null,0,0,0,null,null,0]
[37,{"$nulls":10},0,0,null,0,0,null,0,0,0,null,null,0]
[38,{"$nulls":10},0,0,null,0,0,null,0,0,0,null,null,0]
[39,{"$nulls":10},0,0,null,0,0,null,0,0,0,null,null,0]
[40,{"$nulls":10},0,0,null,0,0,null,0,0,0,null,null,0]
[41,{"$nulls":10},0,0,null,0,0,null,0,0,0,null,null,0]
[42,{"$nulls":10},0,0,null,0,0,null,0,0,0,null,null,0]
[43,{"$nulls":10},0,0,null,0,0,null,0,0,0,null,null,0]
[44,{"$nulls":10},0,0,null,0,0,null,0,0,0,null,null,0]
[45,{"$nulls":10},0,0,null,0,0,null,0,0,0,null,null,0]
[46,{"$nulls":10},0,0,null,0,0,null,0,0,0,null,null,0]
[47,{"$nulls":10},0,0,null,0,0,null,0,0,0,null,null,0]
[48,{"$nulls":10},0,0,null,0,0,null,0,0,0,null,null,0]
[49,{"$nulls":10},0,0,null,0,0,null,0,0,0,null,null,0]
[50,{"$nulls":10},0,0,null,0,0,null,0,0,0,null,null,0]

{"sheet":"Termékkategóriák","index":6,"n_rows":83,"n_cols":1,"rows_kept":83,"cut":false,"hidden":false,"merged":[]}
["Termékkategória kiválasztása"]
["Általános vegyszerek"]
["Speciális vegyszerek"]
["Oldószerek"]
["Reagensek"]
["Szerves és szervetlen vegyületek"]
["Enzimek"]
["Sejttenyésztéshez használatos anyagok"]
["Izotópok"]
["Pufferek"]
["Speciális festékek"]
["Laboratóriumi egyszerhasználatos anyagok"]
["Antitestek"]
["Immunoassay"]
["KIT-ek"]
["DNS detektálás"]
["Fehérje detektálás"]
["Peptidek"]
["Nukleotid szintézis"]
["Flow cytometria"]
["Teszt törzsek"]
["Antibiotikum korongok"]
["Ellenanyagok"]
["Nagy tisztaságú savak, lúgok"]
["Standard oldatok, mérőoldatok"]
["Kromatográfiás fogyóanyagok"]
["Független klinikai diagnosztikai kontrollok"]
["HLA tipizálás"]
["Inhibítorok"]
["Aktivátorok"]
["Antibiotikumok"]
["Agonista és antagonista molekulák"]
["Enzim szubsztátok"]
["Primer sejtek "]
["Szekvenálás"]
["Sejtanalízis"]
["Klónozás"]
["Molekuláris biológia"]
["Áramlási citometria"]
["Nukleinsav tisztítás"]
["Ellenanyagok"]
["Fehérje vizsgálatok"]
["Őssejt vizsgálatok"]
["Génszintézis"]
["Epigenetika"]
["Humán személyazonosítás"]
["Állategészségügy"]
["Növényélettan"]
["Oligoszintézis (primerek, próbák)"]
["Sejtbiológia reagensek"]
["Oligonukleotidok, gének"]
["Inhibitorok"]
["Diabetes gondozás"]
["Szuszpenziós array technika (bioplex)"]
["Gázok"]
["HPLC oszlopok"]
["Üvegeszközök"]
["Porcelán laboreszközök"]
["Műanyag laboreszközök"]
["Fém eszközök"]
["Védőfelszerelések"]
["Segédanyagok"]
["Csomagolóanyagok"]
["Biztonság, higiéniai eszközök"]
["Zárt vérvételi rendszerek"]
["Eszközök (kórházi, klinikai eszközök)"]
["Vizelet, széklet, nyál, liquor vizsgálati termékek, vérellátó"]
["Transzfúzió eszközökhöz, készülékekhez kapcsolódó fogyóanyagok"]
["Flowcytometria"]
["Táptalaj alapanyagok"]
["Portáptalajok"]
["Késztáptalajok"]
["Gyorstesztek"]
["Klinikai kémiatesztek"]
["Immunkémiai tesztek"]
["Allergia tesztek (PRICK, BLOT, Molekuláris diagnosztika)"]
["Antibiotikum korong, MIC teszt (Antibiotikum érzékenység, minimális gátló koncentráció meghatározás)"]
["Mikrobiológai latex tesztek (Kórokozó azonosításhoz)"]
["Ipari mikrobiológiai tesztek (Élelmiszeripari, környezetbizotnsági, vízvizsgálati tesztek)"]
["Sportdiagnosztika"]
["Vércsoport meghatározás"]
["Hemoglobin meghatározás"]
["Mintavételi eszközök"]